[Event "Reykjavik Open 2024"]
[Site "Reykjavik"]
[Date "2024.03.19"]
[Round "7.4"]
[White "Suleymenov, Alisher"]
[Black "Sanal, Vahap"]
[Result "1-0"]
[ECO "E21"]
[WhiteElo "2506"]
[BlackElo "2558"]
[Annotator "TA"]
[PlyCount "135"]
[EventDate "2024.03.12"]
[EventCountry "ISL"]
[SourceTitle "playchess.com"]
[Source "ChessBase"]
[SourceQuality "1"]
[TimeControl "40/5400+30:1800+30"]

{[%evp 72,135,77,76,68,85,100,78,174,164,162,166,173,164,236,228,268,265,271,281,302,290,408,386,385,355,408,421,454,478,516,508,513,500,593,619,593,594,700,687,617,648,677,666,767,767,730,722,29961,29961,29970,29970,29970,29970,6170,5127,29983,29984,29991,29992,29992,1519,29993,29994,29995,29996]} 1. d4 {[%emt 0:00:02]} Nf6 {[%emt 0:02:21]} 2. c4 {[%emt 0:00:06]} e6 {[%emt 0:00:06]} 3. Nc3 {[%emt 0:00:04]} Bb4 {[%emt 0:00:25]} 4. e3 {[%emt 0:00:09]} b6 {[%emt 0:02:01]} 5. Bd2 {[%emt 0:02:48]} Bb7 {[%emt 0:00:43]} 6. Nf3 {[%emt 0:00:09]} Bxc3 {[%emt 0:02:12]} 7. Bxc3 {[%emt 0:00:05]} Ne4 {[%emt 0:00:09]} 8. Bb4 {[%emt 0:06:36]} a5 {[%emt 0:01:14]} 9. Ba3 {[%emt 0:00:11]} d6 {[%emt 0:00:08]} 10. Bd3 {[%emt 0:01:35]} Nd7 {[%emt 0:01:26]} 11. O-O {[%emt 0:00:36]} f5 {[%emt 0:04:35]} 12. d5 {[%emt 0:07:39]} exd5 {[%emt 0:03:28]} 13. Nd4 {[%emt 0:01:59]} Ne5 {[%emt 0:05:10]} 14. Ne6 {[%emt 0:28:11]} Qd7 {[%emt 0:04:07]} 15. cxd5 {[%emt 0:03:39]} Nxd3 {[%emt 0:27:40]} 16. Qxd3 {[%emt 0:00:05]} Nf6 {[%emt 0:01:46]} 17. Rfc1 {[%emt 0:13:16]} Nxd5 {[%emt 0:13:29]} 18. Qxf5 {[%emt 0:01:17]} Ke7 {[%emt 0:04:36]} 19. Nxg7 {[%emt 0:07:54]} Rag8 {[%emt 0:01:59]} 20. Qg5+ {[%emt 0:09:42]} Nf6 {[%emt 0:08:12]} 21. Rc4 {[%emt 0:08:48]} h6 {[%emt 0:00:21]} 22. Qg6 {[%emt 0:01:50]} Ne8 {[%emt 0:02:29]} 23. Re4+ {[%emt 0:03:55]} Bxe4 {[%emt 0:00:27]} 24. Qxe4+ {[%emt 0:00:02]} Kf7 {[%emt 0:01:01]} 25. Nf5 {[%emt 0:00:07]} Rg5 {[%emt 0:03:01]} 26. Qd5+ {[%emt 0:02:04]} Kf8 {[%emt 0:07:14]} 27. e4 {[%emt 0:00:02]} Rhg8 {[%emt 0:00:45]} 28. g3 {[%emt 0:00:02]} Nf6 {[%emt 0:00:55]} 29. Qd4 {[%emt 0:00:22]} Nxe4 {[%emt 0:01:19]} 30. Nxh6 {[%emt 0:00:37]} Qg7 {[%emt 0:01:29]} 31. Qxe4 {[%emt 0:00:07]} Qxh6 {[%emt 0:00:02]} 32. Re1 {[%emt 0:00:35]} Qf6 {[%emt 0:00:48]} 33. Qe8+ {[%emt 0:00:51]} Kg7 {[%emt 0:00:01]} 34. Qd7+ {[%emt 0:00:17]} Kh8 {[%emt 0:00:19]} 35. Qh3+ {[%emt 0:01:01]} Kg7 {[%emt 0:00:01]} 36. Qd7+ {[%emt 0:00:35]} Kh8 {[%emt 0:00:02]} 37. Qxc7 {[%emt 0:00:45]} Rf8 {[%emt 0:00:24]} 38. Qxb6 {[%emt 0:00:42]} (38. Qxd6 $2 Qxf2+ 39. Kh1 Qxe1+ 40. Kg2 Qf1#) 38... Rb5 {[%emt 0:00:02]} 39. Qa7 {[%emt 0:00:28]} (39. Qxb5 $2 Qxf2+ 40. Kh1 Qxe1+ 41. Kg2 Rf2+ 42. Kh3 Qe6+ 43. Kh4 Rxh2+ (43... Qxa2 44. Qh5+ Kg7 45. Qg4+ Kf7 46. Qd7+ Kg6 47. Qg4+ Kf7 48. Qd7+ Kg8 49. Qg4+ Kf7 $11) 44. Kg5 Qg8+ (44... Qxa2 $2 45. Qd3 $19) 45. Kf4 Rf2+ (45... Qxa2 $2 46. Qb8+ Kg7 47. Qxd6 $19) 46. Ke4 Qe6+ (46... Qxg3 $2 47. Qb8+ Kg7 48. Qc7+ Kg6 49. Qxd6+ Qxd6 50. Bxd6 $19) 47. Kd4 Rd2+ $19 (47... Qxa2 48. Qxa5 Qe6 49. Qg5 $17) (47... Qxa2 48. Qh5+ Kg7 49. Qg5+ Kf7 50. Qh5+ Ke7 51. Qg5+ Rf6 52. Qe5+ Kf7 53. Qxa5 $17)) 39... Rb7 {[%emt 0:02:52]} (39... Rd5 $16) 40. Qe3 $18 {[%emt 0:00:04]} (40. Qxb7 $2 Qxf2+ 41. Kh1 Qxe1+ 42. Kg2 Qf1#) 40... Re7 {[%emt 0:00:06] [#]} 41. Qd2 $1 {[%emt 0:30:26]} ({Inferior is} 41. Qxe7 Qxf2+ 42. Kh1 Qf3+ 43. Kg1 Qf2+ 44. Kh1 Qf3+ 45. Kg1 Qf2+ $11) 41... Rxe1+ {[%emt 0:01:53]} 42. Qxe1 {[%emt 0:00:00]} Rc8 {[%emt 0:01:09]} (42... Kg8 $142 43. b3 (43. Qxa5 $2 {leads to mate.} Qxf2+ 44. Kh1 Qf1#) 43... Qg6) 43. Qd2 $18 {[%emt 0:00:00]} Qf5 {[%emt 0:03:44] [#]} 44. Qd4+ $1 {[%emt 0:00:00]} (44. Bxd6 Qb1+ 45. Kg2 Qe4+ 46. Kg1 Qb1+ 47. Kg2 Qe4+ 48. f3 Rc2 $15) 44... Kg8 {[%emt 0:01:24]} 45. Bxd6 {[%emt 0:00:00]} Qf3 {[%emt 0:05:53]} 46. Bf4 {[%emt 0:00:00]} Rc2 {[%emt 0:03:43]} (46... Re8 {is a better defense.} 47. Qc4+ Kh8) 47. Bh6 {[%emt 0:00:00]} Qf7 {[%emt 0:04:07]} 48. Be3 {[%emt 0:00:00]} Qe6 {[%emt 0:01:00]} 49. h4 {[%emt 0:00:00]} Re2 {[%emt 0:00:05]} 50. Bd2 {[%emt 0:00:00]} Re4 {[%emt 0:03:51]} 51. Qd8+ {[%emt 0:00:00]} Kf7 {[%emt 0:00:05]} 52. Qxa5 {[%emt 0:00:00]} Rd4 {[%emt 0:00:39]} 53. Qh5+ {[%emt 0:00:00]} Kg8 {[%emt 0:00:24]} 54. Bc3 {[%emt 0:00:00]} Rd5 {[%emt 0:00:07]} 55. Qf3 {[%emt 0:00:00]} Rf5 {[%emt 0:00:22]} 56. Qg4+ {[%emt 0:00:17]} Kf7 {[%emt 0:00:05]} 57. a4 {[%emt 0:01:19]} Qd5 {[%emt 0:00:45]} 58. a5 {[%emt 0:00:57]} Qc5 {[%emt 0:01:08]} 59. Qe2 {[%emt 0:01:27]} Qc6 {[%emt 0:00:26]} 60. a6 {[%emt 0:01:25]} Qa4 {[%emt 0:00:39]} 61. Qd3 {[%emt 0:01:05]} Ke6 {[%emt 0:00:06]} 62. Qe3+ {[%emt 0:00:21]} Kf7 {[%emt 0:00:26]} 63. Qd4 {[%emt 0:01:13]} Qxa6 {[%emt 0:01:07]} 64. Qd7+ {[%emt 0:00:34]} Kg6 {[%emt 0:00:05]} 65. Qg7+ {[%emt 0:00:33]} Kh5 {[%emt 0:00:02]} 66. g4+ {[%emt 0:00:39]} Kxh4 {[%emt 0:00:04]} 67. gxf5 {[%emt 0:00:17]} Qa1+ {[%emt 0:00:08]} 68. Kh2 {[%emt 0:00:23]} 1-0

[Event "Reykjavik Open 2024"]
[Site "Reykjavik"]
[Date "2024.03.19"]
[Round "7.5"]
[White "Cooper, Malcolm H"]
[Black "Cramling Bellon, Anna"]
[Result "0-1"]
[ECO "B45"]
[WhiteElo "1804"]
[BlackElo "2115"]
[Annotator "RC"]
[PlyCount "60"]
[EventDate "2024.03.12"]
[EventCountry "ISL"]
[SourceTitle "playchess.com"]
[Source "ChessBase"]
[SourceQuality "1"]
[TimeControl "40/5400+30:1800+30"]

1. e4 {[%emt 0:00:03]} c5 {[%emt 0:00:45]} 2. Nf3 {[%emt 0:00:18]} e6 {[%emt 0:00:41]} 3. d4 {[%emt 0:01:53]} cxd4 {[%emt 0:00:07]} 4. Nxd4 {[%emt 0:00:05]} Nf6 {[%emt 0:00:37]} 5. Nc3 {[%emt 0:01:35]} Nc6 {[%emt 0:00:55]} 6. Be2 {[%emt 0:07:29]} Bb4 {[%emt 0:05:10]} 7. Nxc6 {[%emt 0:07:15]} bxc6 {[%emt 0:02:10]} 8. Qd4 {[%emt 0:05:46]} c5 {[%emt 0:28:11]} 9. Qe3 {[%emt 0:08:45]} O-O {[%emt 0:04:26]} 10. O-O {[%emt 0:10:45]} d5 {[%emt 0:01:33]} 11. e5 {[%emt 0:04:13]} Nd7 {[%emt 0:03:13]} 12. Qg3 {[%emt 0:00:23]} Qc7 {[%emt 0:02:02]} 13. Bf4 {[%emt 0:01:56]} Bxc3 {[%emt 0:03:41]} 14. Qxc3 {[%emt 0:00:29]} f6 {[%emt 0:02:44]} 15. Bb5 {[%emt 0:05:18]} Nxe5 {[%emt 0:15:48]} 16. Rfe1 {[%emt 0:03:40]} Qb6 {[%emt 0:01:20]} 17. a4 {[%emt 0:04:23]} Ng6 {[%emt 0:01:54]} 18. Bg3 {[%emt 0:00:49]} c4 {[%emt 0:05:31]} 19. Qe3 {[%emt 0:02:59]} e5 {[%emt 0:11:13]} 20. Qxb6 {[%emt 0:07:04]} axb6 {[%emt 0:00:01]} 21. Bc6 {[%emt 0:09:18]} Ra5 {[%emt 0:00:05]} 22. b4 {[%emt 0:00:21]} cxb3 {[%emt 0:00:09]} 23. cxb3 {[%emt 0:00:02]} Be6 {[%emt 0:05:28]} 24. b4 {[%emt 0:01:32]} Ra7 {[%emt 0:00:06]} 25. f4 {[%emt 0:08:02]} Rc7 {[%emt 0:03:58]} 26. Bb5 {[%emt 0:00:33]} Rc2 {[%emt 0:01:10]} 27. fxe5 {[%emt 0:00:35]} fxe5 {[%emt 0:00:03]} 28. Bxe5 {[%emt 0:00:22]} Rff2 {[%emt 0:00:04]} 29. Bg3 {[%emt 0:03:48]} Rxg2+ {[%emt 0:00:07]} 30. Kf1 {[%emt 0:00:27]} Bh3 {[%emt 0:00:16]} 0-1

[Event "Reykjavik Open 2024"]
[Site "Reykjavik"]
[Date "2024.03.19"]
[Round "7.6"]
[White "Salimova, Nurgyul"]
[Black "Belenkaya, Dina"]
[Result "1-0"]
[ECO "E06"]
[WhiteElo "2426"]
[BlackElo "2164"]
[Annotator "TA"]
[PlyCount "127"]
[EventDate "2024.03.12"]
[EventCountry "ISL"]
[SourceTitle "playchess.com"]
[Source "ChessBase"]
[SourceQuality "1"]
[TimeControl "40/5400+30:1800+30"]

{[%evp 12,127,27,12,23,17,30,27,29,0,0,0,0,0,0,0,11,10,8,12,22,-18,6,0,7,-2,0,-26,0,-22,-4,-32,0,-18,26,18,20,22,25,7,0,-41,0,-29,16,0,13,-62,0,0,0,0,0,0,0,0,-7,-10,101,39,8,-39,-43,-63,-11,-14,20,-27,-34,-37,-36,-44,-29,-118,-112,-125,-117,-109,-110,-104,-98,-175,-13,-101,0,0,179,178,162,181,177,170,393,409,360,394,481,400,2301,1988,2257,2225,2180,1958,29987,29988,29988,29989,29988,29989,29989,29990,29990,29991,29991,2695,29987,29988]} 1. d4 {[%emt 0:01:58]} Nf6 {[%emt 0:02:50]} 2. c4 {[%emt 0:00:34]} e6 {[%emt 0:00:16]} 3. Nf3 {[%emt 0:00:05]} d5 {[%emt 0:00:28]} 4. g3 {[%emt 0:00:13]} Be7 {[%emt 0:00:22]} 5. Bg2 {[%emt 0:00:08]} O-O {[%emt 0:00:16]} 6. O-O {[%emt 0:00:10]} c6 {[%emt 0:00:10]} 7. Qc2 {[%emt 0:00:34]} h6 {[%emt 0:00:15]} 8. Nbd2 {[%emt 0:00:34]} b6 {[%emt 0:05:21]} 9. e4 {[%emt 0:06:31]} Bb7 {[%emt 0:04:02] Weiß hat minimalen Vorteil.} 10. e5 {[%emt 0:01:58]} Nfd7 {[%emt 0:01:14]} 11. cxd5 {[%emt 0:01:24]} cxd5 {[%emt 0:03:47]} 12. Nb1 {[%emt 0:00:32]} Nc6 {[%emt 0:06:56][%cal Bb8c6,Bc6a5,Ba5c4][%mdl 32]} 13. Nc3 {[%emt 0:01:48]} Ba6 {[%emt 0:05:02]} 14. Rd1 {[%emt 0:00:28][%cal Oc3d5]} Rc8 {[%emt 0:01:43]} 15. Bf4 {[%emt 0:07:49]} Na5 {[%emt 0:08:43]} 16. Rac1 {[%emt 0:06:11]} Re8 {[%emt 0:02:45]} 17. h4 {[%emt 0:02:08]} Nf8 {[%emt 0:06:59]} 18. h5 {[%emt 0:02:07]} Nh7 {[%emt 0:01:55]} 19. Qb1 {[%emt 0:03:20]} Nc4 {[%emt 0:05:00]} 20. Bf1 {[%emt 0:03:20]} Ng5 {[%emt 0:03:15]} 21. Nh2 {[%emt 0:03:49]} Bb4 {[%emt 0:03:56]} 22. Ng4 {[%emt 0:13:26]} Rc7 {[%emt 0:12:35]} 23. Kg2 {[%emt 0:07:19]} Qe7 {[%emt 0:08:33][%cal Oc4a3]} 24. Bd3 {[%emt 0:03:07]} Rec8 {[%emt 0:01:43]} 25. Ne2 {[%emt 0:03:33]} Qd8 {[%emt 0:01:16]} 26. a3 {[%emt 0:06:11]} Bf8 {[%emt 0:00:23]} 27. Qa2 {[%emt 0:02:10]} Bb5 {[%emt 0:02:38]} 28. f3 {[%emt 0:04:08]} Be8 {[%emt 0:03:15]} 29. Bb1 {[%emt 0:03:27]} (29. a4 $11) 29... Rc6 {[%emt 0:06:37]} (29... a5 $15) 30. Qb3 $11 {[%emt 0:02:14][%cal Oc1c4]} f5 $1 {[%emt 0:00:05]} 31. exf6 {[%emt 0:00:14]} gxf6 {[%emt 0:00:21]} 32. Rh1 {[%emt 0:02:16]} Qe7 {[%emt 0:00:16]} 33. Rce1 {[%emt 0:00:46]} Qg7 {[%emt 0:00:44] Es drohte Bg6} 34. Bc1 {[%emt 0:01:30]} e5 {[%emt 0:00:28]} (34... b5 $11) 35. Rh4 {[%emt 0:04:08]} (35. Bf5 $16) 35... Bd7 {[%emt 0:00:11]} 36. Nf2 {[%emt 0:02:16]} (36. dxe5 $1 $11 {ist eher angebracht.} Nxe5 (36... fxe5 37. f4 $14) 37. Nxe5 (37. Qxd5+ $2 Be6 $19) 37... fxe5 38. Bxg5 (38. Qxd5+ Be6 $14) 38... hxg5 39. Rhh1 (39. Qxd5+ $2 Be6 $19)) 36... Kh8 {[%emt 0:00:14]} 37. Bg6 {[%emt 0:01:57]} Be6 {[%emt 0:00:10]} ({Günstiger ist} 37... f5 $15 38. dxe5 Nxe5 39. Bxg5 hxg5) 38. Qd1 {[%emt 0:01:45]} Nd6 {[%emt 0:02:25]} 39. dxe5 {[%emt 0:01:15]} (39. Nc3 $142) 39... fxe5 {[%emt 0:00:11]} 40. f4 {[%emt 0:01:02]} Nge4 {[%emt 0:01:20]} 41. Nxe4 {[%emt 0:05:59]} Nxe4 {[%emt 0:12:21]} 42. Nc3 {[%emt 0:10:48]} Be7 {[%emt 0:02:38]} (42... Nxc3 {vereinfacht} 43. bxc3 Be7 44. Rhh1 e4) 43. Rhh1 {[%emt 0:03:16]} Nxc3 {[%emt 0:06:03]} 44. bxc3 {[%emt 0:00:06][%cal Bb2c3,Bc3c4][%mdl 32]} e4 {[%emt 0:01:07]} (44... Rxc3 45. Rxe5 Rxc1 46. Qe2 Rxh1 47. Kxh1 $14) 45. f5 {[%emt 0:01:19]} Bg8 {[%emt 0:00:50]} 46. Bd2 {[%emt 0:02:44]} (46. Qd2 $17 {ist wohl besser.}) 46... Bxa3 $2 {[%emt 0:05:10]} ({Vorzuziehen ist} 46... Rxc3 $1 $19 {[%cal Oe7d6] Droht ...Bd6! und aus.} 47. Bxc3 Rxc3) 47. Rhf1 {[%emt 0:02:18] [#]} (47. Be3 $1 $11 {hält das Gleichgewicht.} Be7 (47... Rxc3 $2 48. Bd4 $18) 48. Bd4) 47... Rf6 {[%emt 0:01:27]} (47... Be7 $1 $17 {Weiss muss nun ...Rxc3 beachten.} 48. Rf4 Bf6) 48. Qa1 $36 {[%emt 0:00:39][%mdl 2048] Schwarz steht unter Druck.} Qf8 {[%emt 0:00:52] [#] Weiß verwandelt nun seinen Vorteil.} (48... Bf8 $11 {und Schwarz ist OK.}) 49. c4 $1 $18 {[%emt 0:01:08][%cal Od2h6][%mdl 512] Und jetzt Bxh6! wäre schön.} Be7 {[%emt 0:01:59]} 50. cxd5 {[%emt 0:01:08]} (50. Qxa7 Ra8 51. Qd7 Ra2 $11) 50... Rc2 {[%emt 0:00:06]} 51. Qd1 {[%emt 0:00:46]} Qc8 {[%emt 0:00:23]} (51... Rc5 {ist eine bessere Verteidigung.} 52. Be3 (52. Rxe4 Bxd5 53. Rfe1 Rc4 $15) 52... Rc3) 52. Kh3 {[%emt 0:00:20]} (52. Rxe4 $2 Bxd5 53. Rff4 Qc3 $19 (53... Bxe4+ $2 54. Rxe4 Qc6 55. Qf3 $19)) 52... Bxd5 {[%emt 0:01:16]} 53. Bxh6 {[%emt 0:00:40]} Qc4 {[%emt 0:01:10]} 54. Bg5 {[%emt 0:02:39][%cal Od1a1] Qa1! wäre nun fies.} Rxg6 {[%emt 0:02:56]} (54... a5 $142 55. Qa1 (55. Bxf6+ Bxf6 56. Qb1 e3 $16) 55... Qc3 56. Qxc3 (56. Bxf6+ Bxf6 57. Qxc3 Rxc3 $16) 56... Rxc3) 55. hxg6 {[%emt 0:00:17] Weiss will mit Qh5+ Matt setzen.} (55. Bxe7 Rxg3+ 56. Kxg3 Qc7+ 57. Rf4 Qc3+ $11) 55... Bxg5 {[%emt 0:00:27]} 56. Qh5+ {[%emt 0:00:07]} Kg8 {[%emt 0:00:17]} 57. Qxg5 {[%emt 0:02:21] Weiss droht Qd8+ und Matt.} e3 {[%emt 0:00:16]} 58. Qd8+ {[%emt 0:00:28]} (58. Qxe3 $2 Bg2+ 59. Kh2 Bxf1+ $19) 58... Kg7 {[%emt 0:00:04]} 59. Qe7+ {[%emt 0:00:17]} Kg8 {[%emt 0:00:10]} 60. Qh7+ {[%emt 0:00:49]} (60. Qxe3 Bg2+ 61. Kh2 Bxf1+ $19) 60... Kf8 {[%emt 0:00:01]} 61. g7+ {[%emt 0:01:02]} (61. Qxa7 {ist ein Selbstmatt.} Bg2+ 62. Kh2 Bf3+ (62... Bxf1+ 63. Kg1 Rg2+ 64. Kh1) (62... Bxf1+ 63. Kg1 Rg2+ 64. Kh1)) 61... Ke8 {[%emt 0:00:09]} 62. Rxe3+ {[%emt 0:00:37]} Kd8 {[%emt 0:00:06]} 63. Qh4+ {[%emt 0:01:06]} (63. Rd1 $142 Qf1+ 64. Rxf1 Bg2+ 65. Kg4 Rc4+ 66. Kg5 Bd5 67. g8=Q+ (67. g8=B Rd4 68. Bxd5 Rxd5 69. Rc1 Rc5 70. Rd1+ Rd5 71. Rxd5+ Kc8 72. Re8#) 67... Bxg8 68. Rd1+ (68. Qxg8+ Kc7 69. Qxc4+ Kb8 70. Re8+ Kb7 71. Qc8#) 68... Rd4 69. Rxd4+ Bd5 70. Rxd5+ Kc8 71. Re8#) 63... Kd7 {[%emt 0:00:20]} 64. Qxc4 {[%emt 0:00:26] Gewichteter Fehlerwert: Weiß=0.18 (sehr präzise) /Schwarz=0.53.  Verlustzug:     	---       	Schwarz=1     Gewinn verpasst:   	---       	Schwarz=1     Fehler:       	Weiß=7     	Schwarz=6     Ungenau:       	Weiß=6     	Schwarz=6     OK:         	Weiß=16    	Schwarz=13    Bester:       	Weiß=4     	Schwarz=3     Stark:        	---       	Schwarz=1     Brilliant:      	Weiß=1     	---} 1-0

[Event "Reykjavik Open 2024"]
[Site "Reykjavik"]
[Date "2024.03.19"]
[Round "7.7"]
[White "Balakrishnan, Praveen"]
[Black "Can, Emre"]
[Result "1/2-1/2"]
[ECO "D02"]
[WhiteElo "2490"]
[BlackElo "2551"]
[Annotator "TA"]
[PlyCount "23"]
[EventDate "2024.03.12"]
[EventCountry "ISL"]
[SourceTitle "playchess.com"]
[Source "ChessBase"]
[SourceQuality "1"]
[TimeControl "40/5400+30:1800+30"]

{[%evp 9,23,-4,18,0,0,0,-2,0,0,0,0,5,0,0,0,9]} 1. d4 {[%emt 0:09:13]} d5 {[%emt 0:00:32]} 2. Nf3 {[%emt 0:00:19]} Nf6 {[%emt 0:00:13]} 3. Bf4 {[%emt 0:00:06]} c5 {[%emt 0:01:01]} 4. e3 {[%emt 0:00:08]} Nc6 {[%emt 0:00:22]} 5. Nbd2 {[%emt 0:00:08]} Nh5 {[%emt 0:01:11] The position is equal.} 6. Be5 {[%emt 0:11:15]} e6 {[%emt 0:06:23]} 7. dxc5 {[%emt 0:13:20]} Bxc5 {[%emt 0:04:21]} 8. c4 {[%emt 0:03:23]} Nxe5 {[%emt 0:12:22]} 9. Nxe5 {[%emt 0:00:18]} Nf6 {[%emt 0:00:27]} 10. Qa4+ {[%emt 0:06:31]} Bd7 {[%emt 0:08:53]} 11. Nxd7 {[%emt 0:01:08]} Qxd7 {[%emt 0:00:10]} 12. Qxd7+ {[%emt 0:01:45] Not much happened in this game.   Weighted Error Value: White=0.03 (flawless) /Black=0.03 (flawless) .  OK:         	White=2     	Black=4} 1/2-1/2

[Event "Reykjavik Open 2024"]
[Site "Reykjavik"]
[Date "2024.03.19"]
[Round "7.8"]
[White "Kjartansson, Gudmundur"]
[Black "Ivanchuk, Vasyl"]
[Result "1/2-1/2"]
[ECO "A22"]
[WhiteElo "2465"]
[BlackElo "2625"]
[Annotator "TA"]
[PlyCount "65"]
[EventDate "2024.03.12"]
[EventCountry "ISL"]
[SourceTitle "playchess.com"]
[Source "ChessBase"]
[SourceQuality "1"]
[TimeControl "40/5400+30:1800+30"]

{[%evp 10,65,14,6,14,16,15,-31,-29,-12,-25,-14,-27,-31,-21,-42,-20,-22,-8,-19,0,0,-6,-12,-13,-6,-11,-17,-11,-20,-17,-10,-7,-14,-10,-12,-10,-20,-10,-4,-22,-13,0,0,0,0,0,0,0,0,0,0,0,0,0,0,0,0]} 1. c4 {[%emt 0:00:12]} Nf6 {[%emt 0:00:14]} 2. Nc3 {[%emt 0:00:12]} e5 {[%emt 0:00:05]} 3. g3 {[%emt 0:00:33]} Bb4 {[%emt 0:00:06]} 4. Bg2 {[%emt 0:01:05]} O-O {[%emt 0:00:09]} 5. e4 {[%emt 0:02:16]} Bxc3 {[%emt 0:00:19]} 6. bxc3 {[%emt 0:00:12]} Re8 {[%emt 0:14:55]} 7. Ne2 {[%emt 0:01:58]} c6 {[%emt 0:00:02]} 8. d3 {[%emt 0:05:35]} (8. O-O $11 {scheint genauer.}) 8... d5 $15 {[%emt 0:00:42] Schwarz steht etwas besser.} 9. cxd5 {[%emt 0:10:59]} cxd5 {[%emt 0:00:09]} 10. exd5 {[%emt 0:00:50]} Nxd5 {[%emt 0:00:44]} 11. O-O {[%emt 0:01:07]} Nc6 {[%emt 0:04:55]} 12. Bb2 {[%emt 0:22:44]} Bg4 {[%emt 0:15:39]} 13. h3 {[%emt 0:04:27] Die Stellung ist ausgeglichen.} Bh5 {[%emt 0:00:15]} 14. Re1 {[%emt 0:02:14]} Qd7 {[%emt 0:07:25]} 15. Qb3 {[%emt 0:03:50]} Rad8 {[%emt 0:00:16][%cal Ba8d8,Bd8d5,Bd5b5,Bb5a5,Ba5a2][%mdl 32]} 16. Qxd5 {[%emt 0:01:21]} Qxd5 {[%emt 0:00:06]} 17. Bxd5 {[%emt 0:00:03]} Rxd5 {[%emt 0:00:04]} 18. Nf4 {[%emt 0:03:59]} Rb5 {[%emt 0:00:08]} ({Schlechter ist} 18... exf4 19. Rxe8#) 19. Rab1 {[%emt 0:06:36]} Bf3 {[%emt 0:25:51]} 20. c4 {[%emt 0:00:55] Weiss ist schwach auf den weissen Feldern} Ra5 {[%emt 0:00:02]} 21. Re3 {[%emt 0:01:08][%cal Be1e3,Be3f3,Bf3f4][%mdl 32]} Rxa2 {[%emt 0:00:13][%cal Of7f6]} 22. Rxf3 {[%emt 0:01:22]} exf4 {[%emt 0:00:05]} 23. Rxf4 {[%emt 0:00:20]} f6 {[%emt 0:07:30]} 24. d4 {[%emt 0:01:41][%cal Bd3d4,Bd4d5,Bd5d6,Bd6d7][%mdl 32]} b6 {[%emt 0:02:23]} 25. d5 {[%emt 0:03:00]} Ne5 {[%emt 0:00:04]} 26. Bxe5 {[%emt 0:00:32]} Rxe5 $11 {[%emt 0:00:29][%mdl 4096] Endspiel. KRR-KRR} 27. Rd4 {[%emt 0:03:18]} Kf7 {[%emt 0:12:01]} 28. d6 {[%emt 0:00:39] [#] Droht stark d7.} Ke8 {[%emt 0:00:01]} 29. c5 {[%emt 0:02:26]} Rxc5 {[%emt 0:00:12]} 30. d7+ {[%emt 0:00:59]} Kd8 {[%emt 0:00:10] Und ...Rcc2 würde nun gewinnen.} 31. Re1 {[%emt 0:00:02]} Re5 {[%emt 0:00:09]} 32. Rc1 {[%emt 0:00:03]} Rc5 {[%emt 0:00:10]} 33. Re1 {[%emt 0:00:02] Gewichteter Fehlerwert: Weiß=0.03 (makellos) /Schwarz=0.05 (makellos) .  Fehler:       	Weiß=1     	---        OK:         	Weiß=15    	Schwarz=12    Bester:       	Weiß=2     	Schwarz=3} 1/2-1/2

[Event "Reykjavik Open 2024"]
[Site "Reykjavik"]
[Date "2024.03.19"]
[Round "7.9"]
[White "Sidhant, Mohapatra"]
[Black "Xu, Xiangyu"]
[Result "0-1"]
[ECO "B76"]
[WhiteElo "2379"]
[BlackElo "2623"]
[Annotator "TA"]
[PlyCount "82"]
[EventDate "2024.03.12"]
[EventCountry "ISL"]
[SourceTitle "playchess.com"]
[Source "ChessBase"]
[SourceQuality "1"]
[TimeControl "40/5400+30:1800+30"]

{[%evp 28,82,56,31,48,21,34,31,48,34,54,0,0,-22,-22,-8,0,-24,-19,-34,-32,-66,-72,-74,-72,-68,-47,-49,-44,-77,-71,-144,-137,-197,-188,-156,-189,-204,-193,-275,-268,-685,-687,-640,-545,-812,-767,-879,-879,-879,-812,-1453,-1339,-1360,-1191,-1118,-1072]} 1. e4 {[%emt 0:02:06]} c5 {[%emt 0:00:08]} 2. Nf3 {[%emt 0:00:40]} d6 {[%emt 0:00:07]} 3. d4 {[%emt 0:00:09]} cxd4 {[%emt 0:00:07]} 4. Nxd4 {[%emt 0:00:04]} Nf6 {[%emt 0:00:07]} 5. Nc3 {[%emt 0:00:05]} g6 {[%emt 0:00:07]} 6. Be3 {[%emt 0:02:40]} Bg7 {[%emt 0:00:07]} 7. f3 {[%emt 0:00:08]} Nc6 {[%emt 0:00:05]} 8. Qd2 {[%emt 0:00:13]} O-O {[%emt 0:00:07]} 9. O-O-O {[%emt 0:11:15]} d5 {[%emt 0:00:06]} 10. exd5 {[%emt 0:01:22]} Nxd5 {[%emt 0:00:05]} 11. Nxc6 {[%emt 0:00:05]} bxc6 {[%emt 0:00:06]} 12. Bd4 {[%emt 0:00:05]} e5 {[%emt 0:00:06]} 13. Bc5 {[%emt 0:00:04]} Be6 {[%emt 0:00:06]} 14. Ne4 {[%emt 0:00:45]} Re8 {[%emt 0:00:05]} 15. Bc4 {[%emt 0:03:24]} Qc7 {[%emt 0:00:07]} 16. Bd6 {[%emt 0:04:21]} Qd7 {[%emt 0:00:06]} 17. Ba3 {[%emt 0:00:14]} Red8 {[%emt 0:09:04] Weiß steht etwas besser.} 18. Nc5 {[%emt 0:08:00]} Qe8 {[%emt 0:00:18] Und ...Nb6 würde nun gewinnen.} 19. Nxe6 {[%emt 0:00:42]} ({Vorzuziehen ist} 19. Qa5 $14) 19... Qxe6 $11 {[%emt 0:00:07]} 20. Rhe1 {[%emt 0:00:20]} Qf6 {[%emt 0:01:29]} 21. Kb1 {[%emt 0:03:34]} Qh4 {[%emt 0:01:15]} 22. Bb3 {[%emt 0:04:07]} a5 {[%emt 0:09:53]} 23. g3 {[%emt 0:08:27] Es drohte Nf4} Qf6 {[%emt 0:00:30]} 24. Qe2 {[%emt 0:00:26]} a4 {[%emt 0:01:33]} 25. Bxd5 {[%emt 0:00:50]} cxd5 {[%emt 0:00:07]} 26. c3 {[%emt 0:00:04]} Rab8 {[%emt 0:01:35]} 27. Rd3 {[%emt 0:02:29]} h5 {[%emt 0:00:40]} 28. Red1 {[%emt 0:03:36]} Qc6 {[%emt 0:02:55]} 29. Qd2 {[%emt 0:02:23]} (29. Bb4 $142) 29... d4 $17 {[%emt 0:03:05]} 30. Qe2 {[%emt 0:07:05]} (30. Qc1 $17) 30... Rdc8 {[%emt 0:03:01]} 31. cxd4 {[%emt 0:02:28]} exd4 {[%emt 0:00:07]} 32. Qd2 {[%emt 0:00:10] [#]} Qb5 $1 {[%emt 0:02:04]} 33. f4 {[%emt 0:04:01]} (33. h4 $142) 33... Rc6 {[%emt 0:00:37]} 34. Rc1 $2 {[%emt 0:04:13]} (34. h3) 34... Rxc1+ $19 {[%emt 0:02:50] Schwarz steht klar auf Gewinn.} 35. Kxc1 {[%emt 0:00:05]} Re8 {[%emt 0:00:05]} 36. b3 {[%emt 0:02:04]} Qc6+ {[%emt 0:01:07]} 37. Kb1 {[%emt 0:00:29]} Qh1+ {[%emt 0:01:38]} 38. Bc1 {[%emt 0:00:09]} Qf1 {[%emt 0:00:16]} 39. Qc2 {[%emt 0:00:49]} Re1 {[%emt 0:00:42][%cal Oe1c1] ( -> ...Rxc1+!)} 40. Rd2 {[%emt 0:00:06]} a3 {[%emt 0:01:34]} 41. Qc4 {[%emt 0:31:41] [#]} d3 $1 {[%emt 0:30:19][%mdl 512] Gewichteter Fehlerwert: Weiß=0.69/Schwarz=0.18 (sehr präzise) .  Fehler:       	Weiß=5     	---        Ungenau:       	Weiß=3     	---        OK:         	Weiß=3     	Schwarz=6     Bester:       	---       	Schwarz=2} 0-1